bitfinex-derivatives/quotes_ETHF0:USTF0_20230701
["timestamp","ask_amount","ask_price","bid_price","bid_amount"]
[1688234588385,7.16424694,1920.4,1920.3,6.80226]
[1688234589094,6.87753059,1920.4,1920.3,6.80226]
[1688234591695,7.16424694,1920.4,1920.3,6.80226]
[1688234602201,7.16424694,1920.4,1920.3,6.80126]
[1688234605108,6.87753059,1920.4,1920.3,6.80126]
[1688234606610,6.56509059,1920.4,1920.3,6.80126]
[1688234608407,6.85180694,1920.4,1920.3,6.80126]
[1688234609010,6.56509059,1920.4,1920.3,6.80126]
[1688234610614,1.54079059,1920.4,1920.3,6.80126]
[1688234610815,0.60300162,1920.4,1920.3,6.80126]
[1688234629825,5.85770162,1920.4,1920.3,6.80126]
[1688234630026,6.79549059,1920.4,1920.3,6.80126]
[1688234632228,6.79549059,1920.4,1920.3,7.22374963]
[1688234645541,7.08220694,1920.4,1920.3,7.22374963]
[1688234646244,6.79549059,1920.4,1920.3,7.22374963]
[1688234647540,7.08220694,1920.4,1920.3,7.22374963]
[1688234647836,7.08220694,1920.4,1920.3,6.80126]
[1688234665050,7.39464694,1920.4,1920.3,0.31246]
[1688234665850,7.39511742,1920.4,1920.3,0.31246]
[1688234682247,7.08267742,1920.4,1920.3,3.52026]
[1688234682454,1.54126107,1920.4,1920.3,3.52026]
[1688234682657,0.6034721,1920.4,1920.3,3.52026]
[1688234682857,0.89018845,1920.4,1920.3,3.52026]
[1688234683161,6.13092845,1920.4,1920.3,3.52026]
[1688234683366,7.06871742,1920.4,1920.3,3.52026]
[1688234693468,7.06871742,1920.4,1920.3,3.94746253]
[1688234694163,7.06871742,1920.4,1920.3,0.73966253]
[1688234694366,7.06871742,1920.4,1920.3,3.94746253]
[1688234696576,6.46956107,1920.4,1920.3,3.94746253]
[1688234699485,6.75627742,1920.4,1920.3,3.94746253]
[1688234700677,7.06871742,1920.4,1920.3,3.94746253]
[1688234704085,6.78200107,1920.4,1920.3,3.94746253]
[1688234705692,1.54126107,1920.4,1920.3,7.22946253]
[1688234705890,0.6034721,1920.4,1920.3,7.22946253]
[1688234706690,0.6034721,1920.4,1920.3,7.33346253]
[1688234710703,0.43481939,1920.4,1920.3,7.33346253]
[1688234710901,0.40888038,1920.7,1920.3,7.33346253]
[1688234711104,0.40888038,1920.7,1920.6,6.4898]
[1688234711307,6.05328897,1921.0,1920.6,6.80221]
[1688234711502,6.05328897,1921.0,1920.9,3.2078]
[1688234711699,6.34781457,1921.0,1920.9,3.52016]
[1688234712200,6.06109822,1921.0,1920.9,3.52016]
[1688234712401,6.37343822,1921.0,1920.9,3.52016]
[1688234712999,6.79106526,1921.0,1920.9,3.52016]
[1688234715101,6.47872526,1921.0,1920.9,3.52016]
[1688234715309,1.36322526,1921.0,1920.9,6.80116]
[1688234715501,0.42543629,1921.0,1920.9,6.80116]
[1688234716707,0.00780925,1921.0,1920.9,6.80116]
[1688234717207,0.00780925,1921.0,1920.9,6.90516]
[1688234718310,0.60533406,1921.0,1920.9,6.90516]
[1688234721507,0.60533406,1921.0,1920.9,7.22630836]
[1688234725915,0.89205041,1921.0,1920.9,7.22630836]
[1688234726111,0.60533406,1921.0,1920.9,7.22630836]
[1688234727712,0.89205041,1921.0,1920.9,7.22630836]
[1688234728707,0.60533406,1921.0,1920.9,7.22630836]
[1688234732317,5.63273406,1921.0,1920.9,7.22630836]
[1688234732518,5.63273406,1921.0,1920.9,7.23212688]
[1688234734616,5.91945041,1921.0,1920.9,7.23212688]
[1688234735820,5.63273406,1921.0,1920.9,7.23212688]
[1688234737120,5.91945041,1921.0,1920.9,7.23212688]
[1688234737618,5.63273406,1921.0,1920.9,7.23212688]
[1688234739221,5.91945041,1921.0,1920.9,7.23212688]
[1688234740822,5.63273406,1921.0,1920.9,7.23212688]
[1688234741213,5.91945041,1921.0,1920.9,7.23212688]
[1688234742420,6.96084686,1921.0,1920.9,7.23212688]
[1688234742621,10.55518686,1921.0,1920.9,0.00467852]
[1688234742822,0.31230999,1920.9,1920.7,0.92659397]
[1688234743017,3.53971635,1920.8,1920.7,0.92659397]
[1688234743225,4.21870427,1920.8,1920.7,0.92659397]
[1688234745128,4.32270427,1920.8,1920.7,0.92659397]
[1688234747029,9.33850427,1920.8,1920.7,0.92659397]
[1688234752027,6.08550427,1920.8,1920.7,0.92659397]
[1688234752327,5.98150427,1920.8,1920.7,0.92659397]
[1688234760642,5.66912427,1920.8,1920.7,0.92659397]
[1688234760847,5.98150427,1920.8,1920.7,4.20759397]
[1688234762147,5.98150427,1920.8,1920.7,0.92659397]
[1688234765942,11.15610427,1920.8,1920.7,0.92659397]
[1688234766143,12.09350072,1920.8,1920.7,0.92659397]
[1688234773955,12.03039867,1920.8,1920.7,0.92659397]
[1688234782249,1.83999867,1920.8,1920.7,0.92659397]
[1688234782450,0.67898792,1920.8,1920.7,0.98969602]
[1688234782855,0.96570427,1920.8,1920.7,0.98969602]
[1688234783158,0.96570427,1920.8,1920.7,0.92659397]
[1688234784755,5.78200427,1920.8,1920.7,0.92659397]
[1688234784948,6.71940072,1920.8,1920.7,0.92659397]
[1688234787062,9.98340072,1920.8,1920.7,0.92659397]
[1688234807177,9.67102072,1920.8,1920.7,0.92659397]
[1688234808100,9.98340072,1920.8,1920.7,0.92659397]
[1688234809980,9.67102072,1920.8,1920.7,0.98969602]
[1688234810673,4.56800437,1920.8,1920.7,0.98969602]
[1688234810875,3.63060792,1920.8,1920.7,0.98969602]
[1688234812167,0.36660792,1920.8,1920.7,4.27169602]
[1688234812367,0.67898792,1920.8,1920.7,4.27169602]
[1688234812979,1.90310072,1920.8,1920.7,4.27169602]
[1688234813479,1.90310072,1920.8,1920.7,4.20859397]
[1688234814480,1.90310072,1920.8,1920.7,4.27169602]
[1688234816677,1.90310072,1920.8,1920.7,4.20859397]
[1688234818181,1.90310072,1920.8,1920.7,4.27169602]
[1688234819286,1.90310072,1920.8,1920.7,4.20859397]
[1688234819584,1.90310072,1920.8,1920.7,4.27169602]
[1688234820193,1.61638437,1920.8,1920.7,4.27169602]
[1688234821581,1.30400437,1920.8,1920.7,4.27169602]
[1688234822086,1.61638437,1920.8,1920.7,4.27169602]
[1688234822584,1.30400437,1920.8,1920.7,4.27169602]
[1688234830807,1.61637437,1920.8,1920.7,4.27169602]
[1688234831808,1.30400437,1920.8,1920.7,4.27169602]
[1688234832694,0.36660792,1920.8,1920.7,4.37569602]
[1688234833406,0.00780925,1921.0,1920.7,4.37569602]
[1688234833703,0.00780925,1921.0,1920.9,6.4898]
[1688234834002,0.00780925,1921.0,1920.9,6.86526205]
[1688234834201,0.42700033,1921.0,1920.9,6.86526205]
[1688234834402,0.00780925,1921.0,1920.9,6.86526205]
[1688234844413,0.00780925,1921.0,1920.9,7.28093432]
[1688234845612,0.2945256,1921.0,1920.9,7.21783227]
[1688234845808,0.9271801,1921.0,1920.9,7.21783227]
[1688234846002,6.0412801,1921.0,1920.9,6.80216]
[1688234846314,6.3536301,1921.0,1920.9,6.80216]
[1688234846609,7.29102655,1921.0,1920.9,6.80216]
[1688234849615,7.29105655,1921.0,1920.9,6.80216]
[1688234850109,6.97867655,1921.0,1920.9,6.80216]
[1688234850312,7.29106655,1921.0,1920.9,6.80216]
[1688234851417,6.97867655,1921.0,1920.9,6.80216]
[1688234851816,7.29105655,1921.0,1920.9,6.80216]
[1688234857319,10.57305655,1921.0,1920.9,0.31236]
[1688234857510,0.104,1920.9,1920.8,0.78091]
[1688234857716,1.36137869,1920.9,1920.7,7.41639397]
[1688234857916,5.23391635,1920.8,1920.7,7.41639397]
[1688234858113,5.54632635,1920.8,1920.7,7.41639397]
[1688234858419,7.11640263,1920.8,1920.7,7.41639397]
[1688234860713,6.80399263,1920.8,1920.7,7.47949602]
[1688234860919,6.51727628,1920.8,1920.7,8.04698014]
[1688234861115,5.57987983,1920.8,1920.7,8.04698014]
[1688234861621,6.51727628,1920.8,1920.7,8.04698014]
[1688234862716,6.82968628,1920.8,1920.7,7.41639397]
[1688234863019,7.11640263,1920.8,1920.7,7.47949602]
[1688234867021,6.51727628,1920.8,1920.7,7.47949602]
[1688234867523,5.57987983,1920.8,1920.7,7.47949602]
[1688234869016,5.86659618,1920.8,1920.7,7.47949602]
[1688234869327,6.51727628,1920.8,1920.7,7.47949602]
[1688234869525,5.57987983,1920.8,1920.7,7.47949602]
[1688234869930,6.51727628,1920.8,1920.7,7.47949602]
[1688234870428,6.80399263,1920.8,1920.7,7.47949602]
[1688234870828,7.11639263,1920.8,1920.7,7.47949602]
[1688234872027,7.11639263,1920.8,1920.7,7.47849602]
[1688234872426,7.11640263,1920.8,1920.7,7.47849602]
[1688234873327,7.11640263,1920.8,1920.7,7.41539397]
[1688234873726,6.82969628,1920.8,1920.7,7.47849602]
[1688234874220,6.51727628,1920.8,1920.7,7.47849602]
[1688234875432,6.80399263,1920.8,1920.7,7.47849602]
[1688234875927,6.51727628,1920.8,1920.7,7.47849602]
[1688234876134,6.82968628,1920.8,1920.7,7.47849602]
[1688234877129,6.51727628,1920.8,1920.7,7.47849602]
[1688234877428,6.51727628,1920.8,1920.7,7.47949602]
[1688234877629,6.82968628,1920.8,1920.7,7.47949602]
[1688234878441,6.51727628,1920.8,1920.7,7.47949602]
[1688234878736,6.82968628,1920.8,1920.7,7.47949602]
[1688234879233,7.11640263,1920.8,1920.7,7.47949602]
[1688234879528,7.11640263,1920.8,1920.7,7.41639397]
[1688234880134,6.80399263,1920.8,1920.7,7.47949602]
[1688234880741,7.11640263,1920.8,1920.7,7.47949602]
[1688234881244,6.80399263,1920.8,1920.7,7.47949602]
[1688234881639,6.51727628,1920.8,1920.7,7.47949602]
[1688234882543,1.57007628,1920.8,1920.7,7.47949602]
[1688234882744,0.63267983,1920.8,1920.7,7.47949602]
[1688234883237,5.1765,1920.9,1920.7,7.47949602]
[1688234883540,0.63273128,1920.8,1920.7,12.73979602]
[1688234883744,1.23185763,1920.8,1920.7,7.41639397]
[1688234884341,6.22565763,1920.8,1920.7,7.41639397]
[1688234884541,7.16305408,1920.8,1920.7,7.41639397]
[1688234884838,6.85064408,1920.8,1920.7,7.41639397]
[1688234885043,7.16305408,1920.8,1920.7,7.41639397]
[1688234887840,6.85064408,1920.8,1920.7,7.41639397]
[1688234890142,7.47536407,1920.8,1920.7,7.41639397]
[1688234892047,7.47536407,1920.8,1920.7,4.13439397]
[1688234896451,7.47536407,1920.8,1920.7,4.19749602]
[1688234896644,7.16295407,1920.8,1920.7,4.19749602]
[1688234896846,7.47535407,1920.8,1920.7,4.19749602]
[1688234898347,7.47535407,1920.8,1920.7,4.13439397]
[1688234902356,7.57935407,1920.8,1920.7,4.13439397]
[1688234905959,7.47535407,1920.8,1920.7,4.13439397]
[1688234910764,1.57012773,1920.8,1920.7,4.19749602]
[1688234910973,0.63273128,1920.8,1920.7,4.19749602]
[1688234912257,0.63273128,1920.8,1920.7,7.47949602]
[1688234914071,0.94511128,1920.8,1920.7,7.47949602]
[1688234914375,0.63273128,1920.8,1920.7,7.47949602]
[1688234915866,0.94511128,1920.8,1920.7,7.47949602]
[1688234916771,0.63273128,1920.8,1920.7,7.47949602]
[1688234918072,0.94514128,1920.8,1920.7,7.47949602]
[1688234918481,0.63273128,1920.8,1920.7,7.47949602]
[1688234918773,0.94513128,1920.8,1920.7,7.47949602]
[1688234918968,0.63273128,1920.8,1920.7,7.47949602]
[1688234919164,0.91944763,1920.8,1920.7,7.47949602]
[1688234919676,0.63273128,1920.8,1920.7,7.47949602]
[1688234920074,0.94511128,1920.8,1920.7,7.47949602]
[1688234920380,0.63273128,1920.8,1920.7,7.47949602]
[1688234920677,0.94513128,1920.8,1920.7,7.47949602]
[1688234921871,0.63273128,1920.8,1920.7,7.47949602]
[1688234929071,0.63273128,1920.8,1920.7,7.46029602]
[1688234931979,0.91944763,1920.8,1920.7,7.46029602]
[1688234932180,1.85684408,1920.8,1920.7,7.46029602]
[1688234932482,1.57012773,1920.8,1920.7,7.46029602]
[1688234932682,0.63273128,1920.8,1920.7,7.46029602]
[1688234936980,1.57012773,1920.8,1920.7,7.46029602]
[1688234942184,1.85684408,1920.8,1920.7,7.46029602]
[1688234942389,2.16923408,1920.8,1920.7,7.46029602]
[1688234942783,1.85684408,1920.8,1920.7,7.46029602]
[1688234943289,2.16924408,1920.8,1920.7,7.46029602]
[1688234943589,1.85684408,1920.8,1920.7,7.46029602]
[1688234943789,2.16922408,1920.8,1920.7,7.39719397]
[1688234943979,1.85684408,1920.8,1920.7,7.39719397]
[1688234944186,2.16922408,1920.8,1920.7,7.46029602]
[1688234946492,1.88250773,1920.8,1920.7,7.46029602]
[1688234946995,2.16922408,1920.8,1920.7,7.46029602]
[1688234947293,1.88250773,1920.8,1920.7,7.46029602]
[1688234948795,2.16922408,1920.8,1920.7,7.39719397]
[1688234950389,2.16922408,1920.8,1920.7,7.46029602]
[1688234954003,1.88250773,1920.8,1920.7,7.46029602]
[1688234956197,2.16922408,1920.8,1920.7,7.46029602]
[1688234957807,1.85684408,1920.8,1920.7,7.46029602]
[1688234958600,2.16923408,1920.8,1920.7,7.46029602]
[1688234958799,2.16923408,1920.8,1920.7,7.39719397]
[1688234960101,1.88251773,1920.8,1920.7,7.46029602]
[1688234960300,2.16923408,1920.8,1920.7,7.46029602]
[1688234960502,2.16923408,1920.8,1920.7,7.39719397]
[1688234960898,2.16923408,1920.8,1920.7,7.46029602]
[1688234964605,2.16923408,1920.8,1920.7,7.39719397]
[1688234968412,1.85684408,1920.8,1920.7,7.50119397]
[1688234968617,0.63273128,1920.8,1920.7,7.56329602]
[1688234968812,0.00780925,1921.0,1920.7,7.56329602]
[1688234969113,0.00780925,1921.0,1920.9,6.80218]
[1688234969311,0.00780925,1921.0,1920.9,6.86528205]
[1688234980529,0.00780925,1921.0,1920.9,7.28510059]
[1688234981030,0.64073807,1921.0,1920.9,7.28510059]
[1688234993747,1.57813452,1921.0,1920.9,7.28510059]
[1688235005852,1.26809561,1921.0,1920.9,7.28510059]
[1688235006055,0.33069916,1921.0,1920.9,7.28510059]
[1688235011163,1.26809561,1921.0,1920.9,7.28510059]
[1688235011751,0.33069916,1921.0,1920.9,7.28510059]
[1688235020265,0.33069916,1921.0,1920.9,8.85745465]
[1688235027972,0.72141551,1921.0,1920.9,7.22199854]
[1688235028482,5.86841551,1921.0,1920.9,7.22199854]
[1688235028668,6.80581196,1921.0,1920.9,7.22199854]
[1688235031666,6.80581196,1921.0,1920.9,7.22535545]
[1688235032583,6.51909561,1921.0,1920.9,7.2884575]
[1688235032784,5.58169916,1921.0,1920.9,7.2884575]
[1688235033484,5.47769916,1921.0,1920.9,7.2884575]
[1688235034784,5.76441551,1921.0,1920.9,7.2884575]
[1688235034983,6.70181196,1921.0,1920.9,7.2884575]
[1688235036087,6.41509561,1921.0,1920.9,7.2884575]
[1688235036289,5.47769916,1921.0,1920.9,7.2884575]
[1688235037489,5.76441551,1921.0,1920.9,7.22535545]
[1688235037787,6.70181196,1921.0,1920.9,7.22535545]
[1688235038585,6.41509561,1921.0,1920.9,7.2884575]
[1688235038785,5.47769916,1921.0,1920.9,7.2884575]
[1688235039090,5.76441551,1921.0,1920.9,7.2884575]
[1688235039290,6.70181196,1921.0,1920.9,7.2884575]
[1688235039788,6.41509561,1921.0,1920.9,7.2884575]
[1688235039991,5.47769916,1921.0,1920.9,7.2884575]
[1688235041390,5.79303454,1921.0,1920.9,7.2884575]
[1688235041689,6.73043099,1921.0,1920.9,4.0806575]
[1688235042291,7.01714734,1921.0,1920.9,7.2884575]
[1688235042495,6.73043099,1921.0,1920.9,7.2884575]
[1688235044390,7.01714734,1921.0,1920.9,7.22535545]
[1688235044990,7.01714734,1921.0,1920.9,7.2884575]
[1688235046490,7.01714734,1921.0,1920.9,7.22535545]
[1688235046991,7.01714734,1921.0,1920.9,7.2884575]
[1688235048491,7.01714734,1921.0,1920.9,4.0806575]
[1688235048688,7.01714734,1921.0,1920.9,7.2884575]
[1688235051899,7.01714734,1921.0,1920.9,7.22535545]
[1688235054900,7.01714734,1921.0,1920.9,7.2884575]
[1688235056206,7.01714734,1921.0,1920.9,7.22535545]
[1688235059196,7.01714734,1921.0,1920.9,7.2884575]
[1688235060103,7.01714734,1921.0,1920.9,7.22535545]
[1688235060297,6.73043099,1921.0,1920.9,7.2884575]
[1688235060498,7.01714734,1921.0,1920.9,7.2884575]
[1688235060895,6.73043099,1921.0,1920.9,7.2884575]
[1688235061096,1.58343099,1921.0,1920.9,7.2884575]
[1688235061402,0.64603454,1921.0,1920.9,7.2884575]
[1688235063108,0.93275089,1921.0,1920.9,7.2884575]
[1688235064503,0.64603454,1921.0,1920.9,7.2884575]
[1688235066407,0.93275089,1921.0,1920.9,7.2884575]
[1688235066607,0.64603454,1921.0,1920.9,7.2884575]
[1688235067503,0.93275089,1921.0,1920.9,7.2884575]
[1688235068409,0.64603454,1921.0,1920.9,7.2884575]
[1688235069908,0.93275089,1921.0,1920.9,7.2884575]
[1688235072809,0.64603454,1921.0,1920.9,7.2884575]
[1688235077511,0.93275089,1921.0,1920.9,7.2884575]
[1688235077710,0.93275089,1921.0,1920.9,7.22535545]
[1688235079411,0.93275089,1921.0,1920.9,7.2884575]
[1688235081208,5.86845089,1921.0,1920.9,7.22535545]
[1688235081513,7.11819734,1921.0,1920.9,0.42317545]
[1688235081708,6.95519205,1921.0,1920.9,0.42317545]
[1688235082208,10.23719205,1921.0,1920.9,0.00335691]
[1688235082803,10.23719205,1921.0,1920.9,0.31236]
[1688235083712,10.23719205,1921.0,1920.9,0.31571691]
[1688235085916,10.23719205,1921.0,1920.9,0.00335691]
[1688235086813,10.23719205,1921.0,1920.8,1.20566186]
[1688235087014,4.7815,1920.9,1920.8,1.20566186]
[1688235087215,6.34356644,1920.9,1920.8,1.20566186]
[1688235087414,6.81747949,1920.9,1920.8,1.20566186]
[1688235087714,6.81747949,1920.9,1920.8,1.20902784]
[1688235111022,1.4113095,1920.9,1920.8,1.27212989]
[1688235111227,0.47391305,1920.9,1920.8,1.27212989]
[1688235112123,0.47391305,1920.9,1920.8,4.55412989]
[1688235112326,0.78628305,1920.9,1920.8,4.55412989]
[1688235112726,1.0729994,1920.9,1920.8,4.55412989]
[1688235112926,0.78628305,1920.9,1920.8,4.55412989]
[1688235114218,1.0729994,1920.9,1920.8,4.55412989]
[1688235117028,1.0729994,1920.9,1920.8,1.20902784]
[1688235117531,5.8913994,1920.9,1920.8,1.20902784]
[1688235118126,10.8927994,1920.9,1920.8,1.20902784]
[1688235118428,11.83019585,1920.9,1920.8,1.20902784]
[1688235133029,11.83019585,1920.9,1920.8,1.27212989]
[1688235133227,11.83019585,1920.9,1920.8,1.20902784]
[1688235153965,15.09419585,1920.9,1920.8,0.31574598]
[1688235179085,1.4113095,1920.9,1920.8,0.37884803]
[1688235179302,1.0729894,1920.9,1920.8,0.31574598]
[1688235182692,0.78627305,1920.9,1920.8,0.37884803]
[1688235182894,1.0729894,1920.9,1920.8,0.37884803]
[1688235184391,1.0729894,1920.9,1920.8,0.31574598]
[1688235190899,1.0729894,1920.9,1920.8,0.37884803]
[1688235191304,0.78627305,1920.9,1920.8,0.37884803]
[1688235192202,1.0729894,1920.9,1920.8,3.66084803]
[1688235192701,1.0729894,1920.9,1920.8,3.59774598]
[1688235199807,6.1979894,1920.9,1920.8,3.59774598]
[1688235201205,6.1979894,1920.9,1920.8,0.31574598]
[1688235201406,9.4057894,1920.9,1920.8,0.31574598]
[1688235201605,13.71118585,1920.9,1920.6,0.00780925]
[1688235201909,0.3124,1920.7,1920.6,0.00780925]
[1688235202100,3.86311635,1920.7,1920.6,0.00780925]
[1688235202301,7.53844628,1920.7,1920.6,0.00780925]
[1688235202710,12.46214628,1920.7,1920.6,0.32022925]
[1688235202904,13.39954273,1920.7,1920.6,0.32022925]
[1688235203310,18.70044273,1920.7,1920.6,0.32022925]
[1688235204010,15.49264273,1920.7,1920.6,0.32022925]
[1688235209714,15.49264273,1920.7,1920.6,0.32348391]
[1688235212117,12.22864273,1920.7,1920.6,0.32348391]
[1688235215017,12.65255686,1920.7,1920.6,0.32348391]
[1688235219419,1.82884051,1920.7,1920.6,3.77258596]
[1688235219622,0.89144406,1920.7,1920.6,3.77258596]
[1688235220924,1.20384406,1920.7,1920.6,3.77258596]
[1688235223127,1.49056041,1920.7,1920.6,3.77258596]
[1688235227348,1.20384406,1920.7,1920.6,3.77258596]
[1688235228135,0.77992993,1920.7,1920.6,3.77258596]
[1688235228728,0.46752993,1920.7,1920.6,3.77258596]
[1688235228933,0.31237,1920.9,1920.6,3.77258596]
[1688235229135,0.31237,1920.9,1920.8,3.281]
[1688235229338,0.31237,1920.9,1920.8,3.65648205]
[1688235229835,0.31237,1920.9,1920.8,3.65971857]
[1688235232639,6.40529125,1921.0,1920.8,3.65971857]
[1688235232937,1.19859125,1921.0,1920.8,4.22720269]
[1688235236445,0.46757946,1920.9,1920.8,4.22720269]
[1688235241346,0.46757946,1920.9,1920.8,4.64239933]
[1688235241945,5.69144946,1920.9,1920.8,4.64239933]
[1688235242244,6.62884591,1920.9,1920.8,4.64239933]
[1688235243051,6.91556226,1920.9,1920.8,4.64239933]
[1688235252759,6.91556226,1920.9,1920.8,4.01181316]
[1688235254459,7.01956226,1920.9,1920.7,4.06197]
[1688235254657,7.01956226,1920.9,1920.7,3.281]
[1688235254658,0.31230999,1920.8,1920.7,3.281]
[1688235254857,5.86628999,1920.8,1920.7,3.281]
[1688235255060,7.27129208,1920.8,1920.7,3.281]
[1688235255261,7.27129208,1920.8,1920.7,3.5934]
[1688235255959,7.37529208,1920.8,1920.7,3.5934]
[1688235259072,7.27129208,1920.8,1920.7,3.5934]
[1688235262075,7.27129208,1920.8,1920.7,0.3124]
[1688235262777,7.27129208,1920.8,1920.7,0.31552111]
[1688235267081,7.68753049,1920.8,1920.7,0.31552111]
[1688235304419,7.37515049,1920.8,1920.7,0.37862316]
[1688235304613,1.8212405,1920.8,1920.7,3.65962316]
[1688235304919,1.19623405,1920.8,1920.7,3.65962316]
[1688235305115,0.88384405,1920.8,1920.7,6.97142316]
[1688235305314,9.4668057,1921.0,1920.7,6.97242316]
[1688235305315,0.9452057,1921.0,1920.7,6.97242316]
[1688235305512,0.00780925,1921.0,1920.9,3.59437]
[1688235305711,0.35562447,1921.0,1920.9,3.65747205]
[1688235305921,0.35562447,1921.0,1920.9,6.86527205]
[1688235307015,0.35562447,1921.0,1920.9,6.86837802]
[1688235313122,0.95469082,1921.0,1920.9,6.80427597]
[1688235314526,0.95469082,1921.0,1920.9,3.28410597]
[1688235314728,4.23669082,1921.0,1920.9,0.00310597]
[1688235314935,9.08239082,1921.0,1920.9,0.00310597]
[1688235315235,10.12378727,1921.0,1920.9,0.00310597]
[1688235315527,0.31239,1920.8,1920.6,0.00780925]
[1688235315729,0.28671635,1920.7,1920.6,0.00780925]
[1688235315935,0.59902634,1920.7,1920.6,0.00780925]
[1688235316135,1.26452058,1920.7,1920.6,0.00780925]
[1688235317229,4.47232058,1920.7,1920.6,0.00780925]
[1688235317434,7.61648702,1920.7,1920.6,0.00780925]
[1688235317633,7.72048702,1920.7,1920.2,6.4898]
[1688235317823,3.253,1920.4,1920.2,6.80228]
[1688235318135,0.91149634,1920.3,1920.2,6.80228]
[1688235318430,0.91149634,1920.3,1920.0,3.2078]
[1688235318431,4.32923115,1920.3,1920.0,3.2078]
[1688235318635,7.53703115,1920.3,1920.0,0.00781189]
[1688235318824,8.3927748,1920.3,1920.0,0.32032189]
[1688235319030,8.3927748,1920.3,1920.0,0.00781189]
[1688235319230,8.4967748,1920.3,1920.0,0.00781189]
[1688235319439,3.266,1920.1,1920.0,0.00781189]
[1688235319735,4.17752634,1920.1,1920.0,0.00781189]
[1688235320935,0.91152634,1920.1,1920.0,0.32033189]
[1688235323937,0.91152634,1920.1,1920.0,0.32351638]
[1688235326544,0.97686322,1920.1,1920.0,0.32351638]
[1688235327742,1.39769774,1920.1,1920.0,0.32351638]
[1688235335351,1.39769774,1920.1,1920.0,0.01099638]
[1688235335754,6.47579774,1920.1,1920.0,0.01099638]
[1688235336248,6.47579774,1920.1,1920.0,0.32350638]
[1688235349269,6.47579774,1920.1,1920.0,0.01099638]
[1688235357677,13.05359774,1920.1,1920.0,0.01099638]
[1688235357874,13.99142386,1920.1,1919.6,0.93762]
[1688235358069,0.31256,1919.7,1919.5,0.93777]
[1688235358275,3.86502634,1919.6,1919.5,0.93777]
[1688235358575,0.91160634,1919.6,1919.5,0.72896846]
[1688235358976,0.91160634,1919.6,1919.5,0.73233248]
[1688235360886,0.31258,1919.6,1919.5,0.79543453]
[1688235361178,0.00781432,1919.7,1919.5,4.07643453]
[1688235361480,0.32037432,1919.7,1919.5,4.07643453]
[1688235362178,0.00781432,1919.7,1919.6,0.67148412]
[1688235362374,0.32037432,1919.7,1919.6,0.98406412]
[1688235363083,0.60709067,1919.7,1919.6,0.98741903]
[1688235365482,0.60709067,1919.7,1919.6,0.41993491]
[1688235366779,0.60709067,1919.7,1919.6,0.31593491]
[1688235371588,0.32037432,1919.7,1919.6,0.61051255]
[1688235371789,0.32037432,1919.7,1919.6,0.6736146]
[1688235372190,0.32037432,1919.7,1919.6,3.9556146]
[1688235372893,0.60709067,1919.7,1919.6,3.9556146]
[1688235373785,0.60709067,1919.7,1919.6,3.89251255]
[1688235376392,5.62269067,1919.7,1919.6,3.89251255]
[1688235382201,5.62269067,1919.7,1919.6,0.61051255]
[1688235388099,0.00781432,1919.7,1919.6,4.0596146]
[1688235388398,5.45909,1920.2,1919.6,7.18723466]
[1688235388594,0.93784661,1920.3,1920.1,3.59449]
[1688235388905,6.20516,1920.4,1920.3,0.31246]
[1688235389102,6.62527332,1920.4,1920.3,0.31246]
[1688235389898,6.91198967,1920.4,1920.3,0.31575112]
[1688235390892,6.91198967,1920.4,1920.3,0.31246]
[1688235391796,6.91198967,1920.4,1920.3,0.31575224]
[1688235394106,6.62527332,1920.4,1920.3,0.31575224]
[1688235394905,6.91198967,1920.4,1920.3,0.31575224]
[1688235403199,6.62527332,1920.4,1920.3,0.31575224]
[1688235404307,6.91198967,1920.4,1920.3,0.31575224]
[1688235420520,6.91198967,1920.4,1920.3,0.37885429]
[1688235420914,6.91198967,1920.4,1920.3,0.31575224]
[1688235422315,10.19398967,1920.4,1920.3,0.31575224]
[1688235436723,10.19398967,1920.4,1920.3,0.00329224]
[1688235438839,10.19398967,1920.4,1920.3,0.31575224]
[1688235441433,15.19408967,1920.4,1920.3,0.31575224]
[1688235441635,16.13193628,1920.4,1920.3,0.31575224]
[1688235466948,16.13193628,1920.4,1920.3,0.00329224]
[1688235471383,16.13193628,1920.4,1920.3,0.31575224]
[1688235476267,16.13193628,1920.4,1920.3,0.00329224]
[1688235478771,19.33973628,1920.4,1920.3,0.00329224]
[1688235482872,19.33973628,1920.4,1920.1,5.34136]
[1688235483073,3.282,1920.2,1920.1,5.34136]
[1688235483371,3.88118635,1920.2,1920.1,5.0289]
[1688235483572,3.88118635,1920.2,1920.1,5.34139]
[1688235483774,3.88118635,1920.2,1920.1,5.0289]
[1688235483973,8.98808635,1920.2,1920.1,0.0030566]
[1688235484170,12.19588635,1920.2,1920.1,0.0030566]
[1688235484371,13.13373296,1920.2,1920.1,0.0030566]
[1688235484576,13.13373296,1920.2,1919.8,3.59451]
[1688235484577,0.31230999,1920.1,1919.8,13.58481]
[1688235484880,3.86522635,1920.0,1919.8,13.58481]
[1688235485074,13.93482635,1920.0,1919.8,13.58481]
[1688235485276,0.93784661,1919.9,1919.8,13.58481]
[1688235485475,1.25036661,1919.9,1919.8,3.59451]
[1688235486276,1.5626766,1919.9,1919.8,3.69712721]
[1688235486979,4.8286766,1919.9,1919.8,0.41863292]
[1688235488277,3.89082999,1919.9,1919.8,0.41863292]
[1688235488881,9.12832999,1919.9,1919.8,0.41863292]
[1688235489081,10.0661766,1919.9,1919.8,0.41863292]
[1688235489785,4.8286766,1919.9,1919.8,0.41863292]
[1688235489980,4.8286766,1919.9,1919.8,0.00350571]
[1688235490178,10.0661766,1919.9,1919.8,0.00350571]
[1688235490486,10.0661766,1919.9,1919.8,0.35380879]
[1688235496690,10.48938904,1919.9,1919.8,0.35380879]
[1688235530505,10.48938904,1919.9,1919.8,0.35033617]
[1688235530710,10.48938904,1919.9,1919.5,9.9119]
[1688235530912,3.282,1919.6,1919.5,9.9119]
[1688235531101,3.88128635,1919.6,1919.4,1.20448038]
[1688235531302,3.88128635,1919.6,1919.4,1.26758243]
[1688235534120,3.282,1919.5,1919.4,1.26758243]
[1688235534614,3.59459,1919.5,1919.4,1.26758243]
[1688235534808,3.59459,1919.5,1919.4,1.20448038]
[1688235535909,3.59459,1919.5,1919.4,1.26758243]
[1688235538015,3.59459,1919.5,1919.4,1.44638929]
[1688235538917,3.59459,1919.5,1919.4,1.44977874]
[1688235540121,3.282,1919.5,1919.4,1.44977874]
[1688235544323,0.41296503,1919.6,1919.4,4.73177874]
[1688235544622,3.266,1919.7,1919.5,0.56748412]
[1688235544832,3.266,1919.7,1919.6,0.37567205]
[1688235545027,3.264,1919.8,1919.6,3.75258109]
[1688235545222,3.264,1919.8,1919.7,0.56748412]
[1688235545429,3.264,1919.8,1919.7,0.88003412]
[1688235545624,3.264,1919.8,1919.7,0.97494333]
[1688235546327,3.68274626,1919.8,1919.7,0.97494333]
[1688235549332,3.96946261,1919.8,1919.7,0.97494333]
[1688235549728,3.68274626,1919.8,1919.7,0.97494333]
[1688235551527,3.96946261,1919.8,1919.7,0.97494333]
[1688235552030,3.68274626,1919.8,1919.7,0.97863866]